[Event "4NCL Div 1 2018-19"]
[Site "Daventry"]
[Date "2019.01.13"]
[Round "4"]
[White "Morrison, Graham"]
[Black "Zakarian, David"]
[Result "1/2-1/2"]
[ECO "E18"]
[WhiteElo "2292"]
[BlackElo "2353"]
[Annotator "NA"]
[PlyCount "81"]
[EventDate "2019.01.12"]
[EventCountry "GBR"]
[SourceTitle "playchess.com"]
[Source "ChessBase"]
[SourceQuality "1"]
[TimeControl "40"]

1. d4 {[%emt 0:00:00]} Nf6 {[%emt 0:00:00]} 2. c4 {[%emt 0:00:00]} e6 {[%emt 0:00:00]} 3. Nf3 {[%emt 0:00:00]} b6 {[%emt 0:00:00]} 4. g3 {[%emt 0:00:00]} Bb7 {[%emt 0:00:00]} 5. Bg2 {[%emt 0:00:00]} Be7 {[%emt 0:00:00]} 6. Nc3 {[%emt 0:00:00]} O-O {[%emt 0:00:00]} 7. Qc2 {[%emt 0:00:00]} d6 {[%emt 0:00:00]} 8. O-O {[%emt 0:00:00]} Nbd7 {[%emt 0:00:00]} 9. Rd1 {[%emt 0:00:00]} c5 {[%emt 0:00:00]} 10. d5 {[%emt 0:00:00]} e5 {[%emt 0:00:00]} 11. e4 {[%emt 0:00:00]} Ne8 {[%emt 0:00:00]} 12. Ne1 {[%emt 0:00:00]} Bc8 {[%emt 0:00:00]} 13. f4 {[%emt 0:00:00]} Rb8 {[%emt 0:00:00]} 14. Nf3 {[%emt 0:00:00]} Bf6 {[%emt 0:00:00]} 15. f5 {[%emt 0:00:00]} a6 {[%emt 0:00:00]} 16. a4 {[%emt 0:00:00]} Kh8 {[%emt 0:00:00]} 17. g4 {[%emt 0:00:00]} g5 {[%emt 0:00:00]} 18. Be3 {[%emt 0:00:00]} Rg8 {[%emt 0:00:00]} 19. Qd2 {[%emt 0:00:00]} Nf8 {[%emt 0:00:00]} 20. Kf2 {[%emt 0:00:00]} h6 {[%emt 0:00:00]} 21. Rh1 {[%emt 0:00:00]} Nh7 {[%emt 0:00:00]} 22. Bf1 {[%emt 0:00:00]} Bd7 {[%emt 0:00:00]} 23. Bd3 {[%emt 0:00:00]} Nc7 {[%emt 0:00:00]} 24. Qc2 {[%emt 0:00:00]} Rb7 {[%emt 0:00:00]} 25. Rhb1 {[%emt 0:00:00]} b5 {[%emt 0:00:00]} 26. b3 {[%emt 0:00:00]} Qe7 {[%emt 0:00:00]} 27. Be2 {[%emt 0:00:00]} Rgb8 {[%emt 0:00:00]} 28. Nd2 {[%emt 0:00:00]} Kg7 {[%emt 0:00:00]} 29. axb5 {[%emt 0:00:00]} axb5 {[%emt 0:00:00]} 30. b4 {[%emt 0:00:00]} cxb4 {[%emt 0:00:00]} 31. Rxb4 {[%emt 0:00:00]} bxc4 {[%emt 0:00:00]} 32. Rxb7 {[%emt 0:00:00]} Rxb7 {[%emt 0:00:00]} 33. Bxc4 {[%emt 0:00:00]} Nb5 {[%emt 0:00:00]} 34. Nxb5 {[%emt 0:00:00]} Bxb5 {[%emt 0:00:00]} 35. Bxb5 {[%emt 0:00:00]} Rxb5 {[%emt 0:00:00]} 36. Ra7 {[%emt 0:00:00]} Rb7 {[%emt 0:00:00]} 37. Rxb7 {[%emt 0:00:00]} Qxb7 {[%emt 0:00:00]} 38. Qc6 {[%emt 0:00:00]} Qb4 {[%emt 0:00:00]} 39. Qc7 {[%emt 0:00:00]} Kf8 {[%emt 0:00:00]} 40. Qc8+ {[%emt 0:00:00]} Kg7 {[%emt 0:00:00]} 41. Qc7 {[%emt 0:00:00]} 1/2-1/2

[Event "4NCL Div 1 2018-19"]
[Site "Daventry"]
[Date "2019.01.13"]
[Round "4"]
[White "De Verdier, Michael"]
[Black "Foisor, Mihaela-Veronica"]
[Result "1/2-1/2"]
[ECO "D24"]
[WhiteElo "2277"]
[BlackElo "2222"]
[Annotator "NA"]
[PlyCount "118"]
[EventDate "2019.01.12"]
[EventCountry "GBR"]
[SourceTitle "playchess.com"]
[Source "ChessBase"]
[SourceQuality "1"]
[TimeControl "40"]

1. d4 {[%emt 0:00:00]} d5 {[%emt 0:00:00]} 2. c4 {[%emt 0:00:00]} e6 {[%emt 0:00:00]} 3. Nc3 {[%emt 0:00:00]} Nf6 {[%emt 0:00:00]} 4. Nf3 {[%emt 0:00:00]} dxc4 {[%emt 0:00:00]} 5. e4 {[%emt 0:00:00]} c5 {[%emt 0:00:00]} 6. d5 {[%emt 0:00:00]} exd5 {[%emt 0:00:00]} 7. e5 {[%emt 0:00:00]} Nfd7 {[%emt 0:00:00]} 8. Bg5 {[%emt 0:00:00]} Be7 {[%emt 0:00:00]} 9. Bxe7 {[%emt 0:00:00]} Qxe7 {[%emt 0:00:00]} 10. Nxd5 {[%emt 0:00:00]} Qd8 {[%emt 0:00:00]} 11. Bxc4 {[%emt 0:00:00]} O-O {[%emt 0:00:00]} 12. O-O {[%emt 0:00:00]} Nc6 {[%emt 0:00:00]} 13. Re1 {[%emt 0:00:00]} Na5 {[%emt 0:00:00]} 14. Bd3 {[%emt 0:00:00]} c4 {[%emt 0:00:00]} 15. Bc2 {[%emt 0:00:00]} Nc5 {[%emt 0:00:00]} 16. Qd4 {[%emt 0:00:00]} b6 {[%emt 0:00:00]} 17. Rad1 {[%emt 0:00:00]} Be6 {[%emt 0:00:00]} 18. Bxh7+ {[%emt 0:00:00]} Kh8 {[%emt 0:00:00]} 19. Qf4 {[%emt 0:00:00]} Bxd5 {[%emt 0:00:00]} 20. Rxd5 {[%emt 0:00:00]} Ne6 {[%emt 0:00:00]} 21. Qd2 {[%emt 0:00:00]} Qe8 {[%emt 0:00:00]} 22. Bc2 {[%emt 0:00:00]} Rd8 {[%emt 0:00:00]} 23. Re4 {[%emt 0:00:00]} Rxd5 {[%emt 0:00:00]} 24. Qxd5 {[%emt 0:00:00]} g6 {[%emt 0:00:00]} 25. Qd2 {[%emt 0:00:00]} Kg7 {[%emt 0:00:00]} 26. h4 {[%emt 0:00:00]} Qd8 {[%emt 0:00:00]} 27. Qe3 {[%emt 0:00:00]} Rh8 {[%emt 0:00:00]} 28. g3 {[%emt 0:00:00]} Qd5 {[%emt 0:00:00]} 29. Rg4 {[%emt 0:00:00]} Nc6 {[%emt 0:00:00]} 30. Kg2 {[%emt 0:00:00]} Rh5 {[%emt 0:00:00]} 31. Be4 {[%emt 0:00:00]} Qd7 {[%emt 0:00:00]} 32. Bxc6 {[%emt 0:00:00]} Qxc6 {[%emt 0:00:00]} 33. Qc3 {[%emt 0:00:00]} b5 {[%emt 0:00:00]} 34. Kg1 {[%emt 0:00:00]} b4 {[%emt 0:02:01]} 35. Qe3 {[%emt 0:00:00]} c3 {[%emt 0:00:00]} 36. bxc3 {[%emt 0:00:00]} bxc3 {[%emt 0:00:00]} 37. Ne1 {[%emt 0:00:00]} c2 {[%emt 0:00:00]} 38. Qc1 {[%emt 0:00:06]} Rxe5 {[%emt 0:00:00]} 39. Nxc2 {[%emt 0:00:00]} Rc5 {[%emt 0:00:00]} 40. Qb2+ {[%emt 0:00:00]} Kh7 {[%emt 0:00:00]} 41. Ne1 {[%emt 0:00:00]} Rc1 {[%emt 0:00:00]} 42. Re4 {[%emt 0:00:00]} Qxe4 {[%emt 0:00:00]} 43. Qxc1 {[%emt 0:00:00]} Nd4 {[%emt 0:00:00]} 44. Qe3 {[%emt 0:00:00]} Ne2+ {[%emt 0:00:00]} 45. Kh2 {[%emt 0:00:00]} Qxe3 {[%emt 0:00:00]} 46. fxe3 {[%emt 0:00:00]} Nc3 {[%emt 0:00:00]} 47. a3 {[%emt 0:00:00]} Nb1 {[%emt 0:00:00]} 48. Nc2 {[%emt 0:00:00]} g5 {[%emt 0:00:00]} 49. Kh3 {[%emt 0:00:00]} Kg6 {[%emt 0:00:00]} 50. Kg4 {[%emt 0:00:00]} f5+ {[%emt 0:00:00]} 51. Kf3 {[%emt 0:00:00]} a5 {[%emt 0:00:00]} 52. Ke2 {[%emt 0:00:00]} Kh5 {[%emt 0:00:00]} 53. hxg5 {[%emt 0:00:00]} Kxg5 {[%emt 0:00:00]} 54. Kd3 {[%emt 0:00:00]} a4 {[%emt 0:00:00]} 55. Kc4 {[%emt 0:00:00]} Kg4 {[%emt 0:00:00]} 56. Kb4 {[%emt 0:00:00]} Kxg3 {[%emt 0:00:00]} 57. Nd4 {[%emt 0:00:00]} Kf2 {[%emt 0:00:00]} 58. Nxf5 {[%emt 0:00:00]} Kf3 {[%emt 0:00:00]} 59. Kxa4 {[%emt 0:00:00]} Ke4 {[%emt 0:00:00]} 1/2-1/2

[Event "4NCL Div 1 2018-19"]
[Site "Daventry"]
[Date "2019.01.13"]
[Round "4"]
[White "Weller, Jean-Luc"]
[Black "Taylor, Martin R"]
[Result "0-1"]
[ECO "D27"]
[WhiteElo "2268"]
[BlackElo "2328"]
[Annotator "NA"]
[PlyCount "80"]
[EventDate "2019.01.12"]
[EventCountry "GBR"]
[SourceTitle "playchess.com"]
[Source "ChessBase"]
[SourceQuality "1"]
[TimeControl "40"]

1. d4 {[%emt 0:00:00]} d5 {[%emt 0:00:00]} 2. c4 {[%emt 0:00:00]} e6 {[%emt 0:00:00]} 3. Nc3 {[%emt 0:00:00]} c6 {[%emt 0:00:00]} 4. e3 {[%emt 0:00:00]} Nf6 {[%emt 0:00:00]} 5. Bd3 {[%emt 0:00:00]} Nbd7 {[%emt 0:00:00]} 6. Nf3 {[%emt 0:00:00]} dxc4 {[%emt 0:00:00]} 7. Bxc4 {[%emt 0:00:00]} b5 {[%emt 0:00:00]} 8. Bd3 {[%emt 0:00:00]} Bb7 {[%emt 0:00:00]} 9. O-O {[%emt 0:00:00]} a6 {[%emt 0:00:00]} 10. Qe2 {[%emt 0:00:00]} c5 {[%emt 0:00:00]} 11. dxc5 {[%emt 0:00:00]} Nxc5 {[%emt 0:00:00]} 12. Bc2 {[%emt 0:00:00]} Be7 {[%emt 0:00:00]} 13. b4 {[%emt 0:00:00]} Nce4 {[%emt 0:00:00]} 14. Nxe4 {[%emt 0:00:00]} Nxe4 {[%emt 0:00:00]} 15. Bxe4 {[%emt 0:00:00]} Bxe4 {[%emt 0:00:00]} 16. Rd1 {[%emt 0:00:00]} Qb8 {[%emt 0:00:00]} 17. Bb2 {[%emt 0:00:00]} O-O {[%emt 0:00:00]} 18. Ne5 {[%emt 0:00:00]} Rd8 {[%emt 0:00:00]} 19. Rxd8+ {[%emt 0:00:00]} Qxd8 {[%emt 0:00:00]} 20. Rd1 {[%emt 0:00:00]} Qe8 {[%emt 0:00:00]} 21. Rd4 {[%emt 0:00:00]} Bd5 {[%emt 0:00:00]} 22. e4 {[%emt 0:00:00]} Bxa2 {[%emt 0:00:00]} 23. Qg4 {[%emt 0:00:00]} f6 {[%emt 0:00:00]} 24. Rd2 {[%emt 0:00:00]} Rd8 {[%emt 0:00:00]} 25. Rxd8 {[%emt 0:00:00]} Bxd8 {[%emt 0:00:00]} 26. Nd3 {[%emt 0:00:00]} Qd7 {[%emt 0:00:00]} 27. Qe2 {[%emt 0:00:00]} Bc4 {[%emt 0:00:00]} 28. Nc5 {[%emt 0:00:00]} Bxe2 {[%emt 0:00:00]} 29. Nxd7 {[%emt 0:00:00]} a5 {[%emt 0:00:00]} 30. Nc5 {[%emt 0:00:00]} Be7 {[%emt 0:00:00]} 31. Bc3 {[%emt 0:00:00]} Kf7 {[%emt 0:00:00]} 32. f4 {[%emt 0:00:00]} Bxc5+ {[%emt 0:00:00]} 33. bxc5 {[%emt 0:00:00]} b4 {[%emt 0:00:00]} 34. Bd2 {[%emt 0:00:00]} Bd3 {[%emt 0:00:00]} 35. e5 {[%emt 0:00:00]} fxe5 {[%emt 0:00:00]} 36. fxe5 {[%emt 0:00:00]} Be4 {[%emt 0:00:00]} 37. Kf2 {[%emt 0:00:00]} Ke7 {[%emt 0:00:00]} 38. Ke3 {[%emt 0:00:00]} Bxg2 {[%emt 0:00:00]} 39. Kd4 {[%emt 0:00:08]} Kd7 40. Kc4 {[%emt 0:01:37]} Kc6 {[%emt 0:02:20]} 0-1

[Event "4NCL Div 1 2018-19"]
[Site "Daventry"]
[Date "2019.01.13"]
[Round "4"]
[White "Toczek, Grzegorz"]
[Black "Taylor, Adam A"]
[Result "0-1"]
[ECO "B23"]
[WhiteElo "2263"]
[BlackElo "2122"]
[Annotator "NA"]
[PlyCount "136"]
[EventDate "2019.01.12"]
[EventCountry "GBR"]
[SourceTitle "playchess.com"]
[Source "ChessBase"]
[SourceQuality "1"]
[TimeControl "40"]

1. e4 {[%emt 0:00:00]} c5 {[%emt 0:00:00]} 2. Nc3 {[%emt 0:00:00]} e6 {[%emt 0:00:00]} 3. Nge2 {[%emt 0:00:00]} Nc6 {[%emt 0:00:00]} 4. g3 {[%emt 0:00:00]} Nge7 {[%emt 0:00:00]} 5. Bg2 {[%emt 0:00:00]} d6 {[%emt 0:00:00]} 6. O-O {[%emt 0:00:00]} Nd4 {[%emt 0:00:00]} 7. Nxd4 {[%emt 0:00:00]} cxd4 {[%emt 0:00:00]} 8. Ne2 {[%emt 0:00:00]} Nc6 {[%emt 0:00:00]} 9. c3 {[%emt 0:00:00]} Qb6 {[%emt 0:00:00]} 10. cxd4 {[%emt 0:00:00]} Nxd4 {[%emt 0:00:00]} 11. Qa4+ {[%emt 0:00:00]} Nc6 {[%emt 0:00:00]} 12. d4 {[%emt 0:00:00]} Bd7 {[%emt 0:00:00]} 13. Qd1 {[%emt 0:00:00]} Be7 {[%emt 0:00:00]} 14. b3 {[%emt 0:00:00]} O-O {[%emt 0:00:00]} 15. Be3 {[%emt 0:00:00]} Qa5 {[%emt 0:00:00]} 16. Qb1 {[%emt 0:00:00]} Rfc8 {[%emt 0:00:00]} 17. Rd1 {[%emt 0:00:00]} Nb4 {[%emt 0:00:00]} 18. Rd2 {[%emt 0:00:00]} Qa3 {[%emt 0:00:00]} 19. Qb2 {[%emt 0:00:00]} Qxb2 {[%emt 0:00:00]} 20. Rxb2 {[%emt 0:00:00]} Nc2 {[%emt 0:00:00]} 21. Rc1 {[%emt 0:00:00]} Nxe3 {[%emt 0:00:00]} 22. fxe3 {[%emt 0:00:00]} Rxc1+ {[%emt 0:00:00]} 23. Nxc1 {[%emt 0:00:00]} Rc8 {[%emt 0:00:00]} 24. Ne2 {[%emt 0:00:00]} Bb5 {[%emt 0:00:00]} 25. Kf2 {[%emt 0:00:00]} Bd8 {[%emt 0:00:00]} 26. Bf1 {[%emt 0:00:00]} Bd3 {[%emt 0:00:00]} 27. Nf4 {[%emt 0:00:00]} Bxe4 {[%emt 0:00:00]} 28. Bg2 {[%emt 0:00:00]} Bxg2 {[%emt 0:00:00]} 29. Kxg2 {[%emt 0:00:00]} g5 {[%emt 0:00:00]} 30. Nh5 {[%emt 0:00:00]} d5 {[%emt 0:00:00]} 31. g4 {[%emt 0:00:00]} h6 {[%emt 0:00:00]} 32. Kf3 {[%emt 0:00:00]} Kh7 {[%emt 0:00:00]} 33. Ng3 {[%emt 0:00:00]} Kg6 {[%emt 0:00:00]} 34. Kg2 {[%emt 0:00:00]} Rc3 {[%emt 0:00:00]} 35. Re2 {[%emt 0:00:00]} Bc7 {[%emt 0:00:00]} 36. Nh5 {[%emt 0:00:00]} f5 {[%emt 0:00:00]} 37. h3 {[%emt 0:00:00]} Bd6 {[%emt 0:00:00]} 38. Kf2 {[%emt 0:00:00]} Rc1 {[%emt 0:00:00]} 39. Kg2 {[%emt 0:00:00]} a6 {[%emt 0:00:00]} 40. Ng3 {[%emt 0:00:00]} Rc3 {[%emt 0:00:00]} 41. Nh5 {[%emt 0:00:00]} Bb8 {[%emt 0:00:00]} 42. Kf2 {[%emt 0:00:00]} b5 {[%emt 0:00:00]} 43. Kg2 {[%emt 0:00:00]} a5 {[%emt 0:00:00]} 44. Kf2 {[%emt 0:00:00]} Bd6 {[%emt 0:00:00]} 45. Kg2 {[%emt 0:00:00]} Rc1 {[%emt 0:00:00]} 46. Ng3 {[%emt 0:00:00]} Bb8 {[%emt 0:00:00]} 47. Nf1 {[%emt 0:00:00]} Bc7 {[%emt 0:00:00]} 48. Kf2 {[%emt 0:00:00]} h5 {[%emt 0:00:00]} 49. gxh5+ {[%emt 0:00:00]} Kxh5 {[%emt 0:00:00]} 50. Kg2 {[%emt 0:00:00]} Kg6 {[%emt 0:00:00]} 51. Kf2 {[%emt 0:00:00]} Kf6 {[%emt 0:00:00]} 52. Nd2 {[%emt 0:00:00]} a4 {[%emt 0:00:00]} 53. Nf3 {[%emt 0:00:00]} a3 {[%emt 0:00:00]} 54. Ne1 {[%emt 0:00:00]} Bd6 {[%emt 0:00:00]} 55. Kg2 {[%emt 0:00:00]} Rd1 {[%emt 0:00:00]} 56. Nf3 {[%emt 0:00:00]} Rb1 {[%emt 0:00:00]} 57. Ne1 {[%emt 0:00:00]} Bb4 {[%emt 0:00:00]} 58. Nd3 {[%emt 0:00:00]} Bc3 {[%emt 0:00:00]} 59. Kf3 {[%emt 0:00:00]} Rd1 {[%emt 0:00:00]} 60. Ne5 {[%emt 0:00:00]} Rh1 {[%emt 0:00:00]} 61. Kg2 {[%emt 0:00:00]} Rb1 {[%emt 0:00:00]} 62. Kf3 {[%emt 0:00:00]} Rb2 {[%emt 0:00:00]} 63. Nd3 {[%emt 0:00:00]} Bd2 {[%emt 0:00:00]} 64. h4 {[%emt 0:00:00]} g4+ {[%emt 0:00:00]} 65. Kf4 {[%emt 0:00:00]} Rxa2 {[%emt 0:00:00]} 66. h5 {[%emt 0:00:00]} Rc2 {[%emt 0:00:00]} 67. Nb4 {[%emt 0:00:00]} Bxb4 {[%emt 0:00:00]} 68. Rxc2 {[%emt 0:00:00]} Bd6# {[%emt 0:00:00]} 0-1

[Event "4NCL Div 1 2018-19"]
[Site "Daventry"]
[Date "2019.01.13"]
[Round "4"]
[White "Holland, James P"]
[Black "Stewart, Ashley"]
[Result "1-0"]
[ECO "B27"]
[WhiteElo "2257"]
[BlackElo "2122"]
[Annotator "NA"]
[PlyCount "125"]
[EventDate "2019.01.12"]
[EventCountry "GBR"]
[SourceTitle "playchess.com"]
[Source "ChessBase"]
[SourceQuality "1"]
[TimeControl "40"]

1. e4 {[%emt 0:00:00]} c5 {[%emt 0:00:00]} 2. Nf3 {[%emt 0:00:00]} g6 {[%emt 0:00:00]} 3. Bc4 {[%emt 0:00:00]} Nc6 {[%emt 0:00:00]} 4. O-O {[%emt 0:00:00]} Bg7 {[%emt 0:00:00]} 5. c3 {[%emt 0:00:00]} e6 {[%emt 0:00:00]} 6. d4 {[%emt 0:00:00]} cxd4 {[%emt 0:00:00]} 7. Nxd4 {[%emt 0:00:00]} Nxd4 {[%emt 0:00:00]} 8. cxd4 {[%emt 0:00:00]} Ne7 {[%emt 0:00:00]} 9. d5 {[%emt 0:00:00]} exd5 {[%emt 0:00:00]} 10. Bxd5 {[%emt 0:00:00]} Nxd5 {[%emt 0:00:00]} 11. Qxd5 {[%emt 0:00:00]} O-O {[%emt 0:00:00]} 12. Nc3 {[%emt 0:00:00]} Qb6 {[%emt 0:00:00]} 13. Be3 {[%emt 0:00:00]} Qxb2 {[%emt 0:00:00]} 14. Rfc1 {[%emt 0:00:00]} Bxc3 {[%emt 0:00:00]} 15. Rab1 {[%emt 0:00:00]} Qa3 {[%emt 0:00:00]} 16. Bc5 {[%emt 0:00:00]} Qa5 {[%emt 0:00:00]} 17. Bxf8 {[%emt 0:00:00]} Kxf8 {[%emt 0:00:00]} 18. Rb5 {[%emt 0:00:00]} Qa3 {[%emt 0:00:00]} 19. Qc5+ {[%emt 0:00:00]} Qxc5 {[%emt 0:00:00]} 20. Rxc5 {[%emt 0:00:00]} d6 {[%emt 0:00:00]} 21. R5xc3 {[%emt 0:00:00]} Be6 {[%emt 0:00:00]} 22. a3 {[%emt 0:00:00]} d5 {[%emt 0:00:00]} 23. e5 {[%emt 0:00:00]} b5 {[%emt 0:00:00]} 24. Rc7 {[%emt 0:00:00]} a5 {[%emt 0:00:00]} 25. Rb7 {[%emt 0:00:00]} b4 {[%emt 0:00:00]} 26. axb4 {[%emt 0:00:00]} axb4 {[%emt 0:00:00]} 27. Rxb4 {[%emt 0:00:00]} Ra2 {[%emt 0:00:00]} 28. Re1 {[%emt 0:00:00]} h5 {[%emt 0:00:00]} 29. Rd4 {[%emt 0:00:00]} Rc2 {[%emt 0:00:00]} 30. Kf1 {[%emt 0:00:00]} Ra2 {[%emt 0:00:00]} 31. Red1 {[%emt 0:00:00]} Kg7 {[%emt 0:00:00]} 32. R1d2 {[%emt 0:00:00]} Ra3 {[%emt 0:00:00]} 33. Ke2 {[%emt 0:00:00]} Kh6 {[%emt 0:00:00]} 34. f3 {[%emt 0:00:00]} Kg5 {[%emt 0:00:00]} 35. Kf2 {[%emt 0:00:00]} Rb3 {[%emt 0:00:00]} 36. Re2 {[%emt 0:00:00]} Ra3 {[%emt 0:00:00]} 37. h4+ {[%emt 0:00:00]} Kh6 {[%emt 0:00:00]} 38. Kg3 {[%emt 0:00:00]} Ra1 {[%emt 0:00:00]} 39. Kf4 {[%emt 0:00:00]} Rh1 {[%emt 0:00:00]} 40. g3 {[%emt 0:00:00]} Rg1 {[%emt 0:00:01]} 41. Red2 {[%emt 0:00:00]} Ra1 {[%emt 0:00:00]} 42. Rb2 {[%emt 0:00:00]} Ra3 {[%emt 0:00:00]} 43. Rb8 {[%emt 0:00:00]} Kg7 {[%emt 0:00:00]} 44. Rdb4 {[%emt 0:00:00]} Bh3 {[%emt 0:00:00]} 45. Rb3 {[%emt 0:00:00]} Ra4+ {[%emt 0:00:00]} 46. Kg5 {[%emt 0:00:00]} Bg4 {[%emt 0:00:00]} 47. R8b4 {[%emt 0:00:00]} Rxb4 {[%emt 0:00:00]} 48. Rxb4 {[%emt 0:00:00]} Bxf3 {[%emt 0:00:00]} 49. Rb8 {[%emt 0:00:00]} Bg4 {[%emt 0:00:00]} 50. Rd8 {[%emt 0:00:00]} Be6 {[%emt 0:00:00]} 51. Rd6 {[%emt 0:00:00]} Kf8 {[%emt 0:00:00]} 52. Kh6 {[%emt 0:00:00]} Ke8 {[%emt 0:00:00]} 53. Kh7 {[%emt 0:00:00]} Kf8 {[%emt 0:00:00]} 54. Kh8 {[%emt 0:00:00]} Ke8 {[%emt 0:00:00]} 55. Kg8 {[%emt 0:00:00]} Ke7 {[%emt 0:00:00]} 56. Kg7 {[%emt 0:00:00]} d4 {[%emt 0:00:00]} 57. Rxd4 {[%emt 0:00:00]} Bb3 {[%emt 0:00:00]} 58. Rb4 {[%emt 0:00:00]} Bd5 {[%emt 0:00:00]} 59. Rb5 {[%emt 0:00:00]} Ba2 {[%emt 0:00:00]} 60. Rb7+ {[%emt 0:00:00]} Ke8 {[%emt 0:00:00]} 61. Kf6 {[%emt 0:00:00]} Bc4 {[%emt 0:00:00]} 62. Rb8+ {[%emt 0:00:00]} Kd7 {[%emt 0:00:00]} 63. Rf8 {[%emt 0:00:00]} 1-0

[Event "4NCL Div 1 2018-19"]
[Site "Daventry"]
[Date "2019.01.13"]
[Round "4"]
[White "Rudd, Jack"]
[Black "Mueller, Constantin"]
[Result "1-0"]
[ECO "E44"]
[WhiteElo "2234"]
[BlackElo "2280"]
[Annotator "NA"]
[PlyCount "131"]
[EventDate "2019.01.12"]
[EventCountry "GBR"]
[SourceTitle "playchess.com"]
[Source "ChessBase"]
[SourceQuality "1"]
[TimeControl "40"]

1. d4 {[%emt 0:00:00]} Nf6 {[%emt 0:00:00]} 2. c4 {[%emt 0:00:00]} e6 {[%emt 0:00:00]} 3. Nc3 {[%emt 0:00:00]} Bb4 {[%emt 0:00:00]} 4. e3 {[%emt 0:00:00]} b6 {[%emt 0:00:00]} 5. Nge2 {[%emt 0:00:00]} Bb7 {[%emt 0:00:00]} 6. a3 {[%emt 0:00:00]} Be7 {[%emt 0:00:00]} 7. Nf4 {[%emt 0:00:00]} d5 {[%emt 0:00:00]} 8. cxd5 {[%emt 0:00:00]} exd5 {[%emt 0:00:00]} 9. Bd3 {[%emt 0:00:00]} O-O {[%emt 0:00:00]} 10. O-O {[%emt 0:00:00]} Re8 {[%emt 0:00:00]} 11. b4 {[%emt 0:00:00]} c6 {[%emt 0:00:00]} 12. Qf3 {[%emt 0:00:00]} Na6 {[%emt 0:00:00]} 13. b5 {[%emt 0:00:00]} Nc7 {[%emt 0:00:00]} 14. a4 {[%emt 0:00:00]} Qd7 {[%emt 0:00:00]} 15. bxc6 {[%emt 0:00:00]} Bxc6 {[%emt 0:00:00]} 16. Ba3 {[%emt 0:00:00]} Bd8 {[%emt 0:00:00]} 17. Rfc1 {[%emt 0:00:00]} Ne4 {[%emt 0:00:00]} 18. Bxe4 {[%emt 0:00:00]} dxe4 {[%emt 0:00:00]} 19. Qd1 {[%emt 0:00:00]} Rc8 {[%emt 0:00:00]} 20. d5 {[%emt 0:00:00]} Bb7 {[%emt 0:00:00]} 21. d6 {[%emt 0:00:00]} Na6 {[%emt 0:00:00]} 22. Nb5 {[%emt 0:00:00]} Bf6 {[%emt 0:00:00]} 23. Rxc8 {[%emt 0:00:00]} Rxc8 {[%emt 0:00:00]} 24. Rc1 {[%emt 0:00:00]} Be5 {[%emt 0:00:00]} 25. Rxc8+ {[%emt 0:00:00]} Bxc8 {[%emt 0:00:00]} 26. Nd5 {[%emt 0:00:00]} Bb7 {[%emt 0:00:00]} 27. Ne7+ {[%emt 0:00:00]} Kh8 {[%emt 0:00:00]} 28. Qb3 {[%emt 0:00:00]} Qg4 {[%emt 0:00:00]} 29. g3 {[%emt 0:00:00]} Nb8 {[%emt 0:00:00]} 30. Nxa7 {[%emt 0:00:00]} Nd7 {[%emt 0:00:00]} 31. Qxf7 {[%emt 0:00:00]} Qd1+ {[%emt 0:00:00]} 32. Kg2 {[%emt 0:00:00]} Qf3+ {[%emt 0:00:00]} 33. Qxf3 {[%emt 0:00:00]} exf3+ {[%emt 0:00:00]} 34. Kg1 {[%emt 0:00:00]} g6 {[%emt 0:00:00]} 35. Nac6 {[%emt 0:00:00]} Bc3 {[%emt 0:00:00]} 36. Nd8 {[%emt 0:00:00]} Be4 {[%emt 0:00:00]} 37. Ne6 {[%emt 0:00:00]} Bc2 {[%emt 0:00:00]} 38. Nd5 {[%emt 0:00:00]} Ba1 {[%emt 0:00:00]} 39. Nxb6 {[%emt 0:00:00]} Nxb6 {[%emt 0:00:00]} 40. a5 {[%emt 0:00:00]} Nd7 {[%emt 0:00:00]} 41. Nc5 {[%emt 0:00:00]} Nxc5 {[%emt 0:00:00]} 42. Bxc5 {[%emt 0:00:00]} Kg8 {[%emt 0:00:00]} 43. a6 {[%emt 0:00:00]} Kf7 {[%emt 0:00:00]} 44. d7 {[%emt 0:00:00]} Bf6 {[%emt 0:00:00]} 45. Bb6 {[%emt 0:00:00]} Ke6 {[%emt 0:00:00]} 46. d8=Q {[%emt 0:00:00]} Bxd8 {[%emt 0:00:00]} 47. Bxd8 {[%emt 0:00:00]} Be4 {[%emt 0:00:00]} 48. a7 {[%emt 0:00:00]} Bc6 {[%emt 0:00:00]} 49. Kf1 {[%emt 0:00:00]} Kd5 {[%emt 0:00:00]} 50. Ke1 {[%emt 0:00:00]} Kc4 {[%emt 0:00:00]} 51. Kd2 {[%emt 0:00:00]} Be4 {[%emt 0:00:00]} 52. g4 {[%emt 0:00:00]} Ba8 {[%emt 0:00:00]} 53. h3 {[%emt 0:00:00]} Be4 {[%emt 0:00:00]} 54. Ke1 {[%emt 0:00:00]} Kd3 {[%emt 0:00:00]} 55. Kf1 {[%emt 0:00:00]} Ba8 {[%emt 0:00:00]} 56. Kg1 {[%emt 0:00:00]} Ke2 {[%emt 0:00:00]} 57. Bh4 {[%emt 0:00:00]} h6 {[%emt 0:00:00]} 58. Bf6 {[%emt 0:00:00]} Bb7 {[%emt 0:00:00]} 59. Bg7 {[%emt 0:00:00]} h5 {[%emt 0:00:00]} 60. Bf6 {[%emt 0:00:00]} hxg4 {[%emt 0:00:00]} 61. hxg4 {[%emt 0:00:00]} Ba8 {[%emt 0:00:00]} 62. Bh4 {[%emt 0:00:00]} Bb7 {[%emt 0:00:00]} 63. Kh2 {[%emt 0:00:00]} g5 {[%emt 0:00:00]} 64. Bxg5 {[%emt 0:00:00]} Kxf2 {[%emt 0:00:00]} 65. Bh4+ {[%emt 0:00:00]} Kxe3 {[%emt 0:00:00]} 66. g5 {[%emt 0:02:13]} 1-0